Workbook

Sheet Hoja2
C1: Hospital General de Especialidades Dr. Mario Tolentino Dipp
B2: Gerencia de Estadística
B3: Consolidado Trimestral Julio- septiembre 2024
B6: Servicios brindados | E6: Tercer Trimestre 2024 | H6: Total trimestre
E7: Julio | F7: Agosto | G7: Septiembre
B8: Consulta | C8: Alergologia | E8: 0 | F8: 0 | G8: 0 | H8: =SUM(E8:G8) -> 0
C9: Anestesiologia y reanimación | E9: 40 | F9: 60 | G9: 51 | H9: =SUM(E9:G9) -> 151
C10: Cardiologia | E10: 417 | F10: 384 | G10: 383 | H10: 1184
C11: Cirugia Pediatrica | E11: 0 | F11: 0 | G11: 0 | H11: 0
C12: Cirugia Plastica-Reparadora | E12: 59 | F12: 66 | G12: 50 | H12: 175
C13: Cirugía Maxilo-facial | E13: 0 | F13: 0 | G13: 0 | H13: 0
C14: Dermatologia | E14: 111 | F14: 89 | G14: 90 | H14: 290
C15: Endocrinologia | E15: 0 | F15: 0 | G15: 0 | H15: 0
C16: Fisioterapia | E16: 0 | F16: 0 | G16: 0 | H16: 0
C17: Gastroenterologia | E17: 325 | F17: 307 | G17: 301 | H17: 933
C18: Genética | E18: 0 | F18: 0 | G18: 0 | H18: 0
C19: Ginecología | E19: 196 | F19: 167 | G19: 177 | H19: 540
C20: Hematologia | E20: 93 | F20: 76 | G20: 55 | H20: 224
C21: Infectología | E21: 0 | F21: 0 | G21: 0 | H21: 0
C22: Nefrologia | E22: 122 | F22: 117 | G22: 102 | H22: 341
C23: Neonatología | E23: 0 | F23: 0 | G23: 0 | H23: 0
C24: Neurocirugia | E24: 0 | F24: 0 | G24: 0 | H24: 0
C25: Neurologia | E25: 184 | F25: 192 | G25: 234 | H25: 610
C26: Neumologia | E26: 184 | F26: 165 | G26: 67 | H26: 416
C27: Nutrición | E27: 104 | F27: 106 | G27: 105 | H27: 315
C28: Odontologia | E28: 9 | F28: 15 | G28: 66 | H28: 90
C29: Oncologia | E29: 0 | F29: 2 | G29: 4 | H29: 6
C30: Ortopedia | E30: 0 | F30: 0 | G30: 0 | H30: 0
C31: Otorrinolaringologia | E31: 30 | F31: 124 | G31: 167 | H31: 321
C32: Pediatria | E32: 0 | F32: 0 | G32: 0 | H32: 0
C33: Psicologia | E33: 66 | F33: 59 | G33: 70 | H33: 195
C34: Urologia | E34: 161 | F34: 172 | G34: 201 | H34: 534
C35: Otras | E35: 2,287 | F35: 2,099 | G35: 2,618 | H35: =SUM(E35:G35) -> 7,004
B36: Subtotal consultas | E36: =SUM(E8:E35) -> 4,388 | F36: =SUM(F9:F35) -> 4,200 | G36: =SUM(G8:G35) -> 4,741 | H36: =+E36+F36+G36 -> 13,329
B37: Emergencias | E37: 1,999 | F37: 1,771 | G37: 3,552 | H37: =+E37+F37+G37 -> 7,322
B38: Hospitalizaciones | E38: 139 | F38: 157 | G38: 246 | H38: =+E38+F38+G38 -> 542
B39: Total de servicios | E39: =SUM(E36:E38) -> 6,526 | F39: =SUM(F36:F38) -> 6,128 | G39: =SUM(G36:G38) -> 8,539 | H39: =+E39+F39+G39 -> 21,193
B41: Otros servicios | D41: Tercer Trimestre 2024 | G41: Total trimestre
D42: Julio | E42: Agosto | F42: Septiembre
B43: Pruebas de Laboratorio | D43: 18,507 | E43: 21,076 | F43: 22,724 | G43: =D43+E43+F43 -> 62,307
B44: Estudios de Imágenes | D44: 2,224 | E44: 1,900 | F44: 2,026 | G44: =D44+E44+F44 -> 6,150
B45: Evaluaciones Cardiológicas | D45: 420 | E45: 293 | F45: 170 | G45: 883
B46: Procedimientos Quirúrgicos | D46: 40 | E46: 49 | F46: 79 | G46: 168
B47: Endoscopías | G47: 0
B48: Subtotal otros servicios | D48: =SUM(D43:D47) -> 21,191 | E48: =SUM(E43:E47) -> 23,318 | F48: =SUM(F43:F47) -> 24,999 | G48: 69,508
C50: Lucero Lopez-Penha Ureña | G50: Ginssellys Vasquez
C51: Departamento De Datos Estadistico | G51: Departamento De Planificacion
